bitfinex-derivatives/quotes_BTCF0:USTF0_20241210
["timestamp","ask_amount","ask_price","bid_price","bid_amount"]
[1733827569810,0.15338014,97753.0,97748.0,0.051129]
[1733827570102,0.15338014,97757.0,97756.0,0.051124]
[1733827570300,0.15338014,97763.0,97756.0,0.00319711]
[1733827570507,0.05112,97764.0,97763.0,0.051121]
[1733827570699,0.07163014,97764.0,97763.0,0.42023349]
[1733827570898,0.07163014,97764.0,97763.0,0.42029349]
[1733827571307,0.07163014,97764.0,97763.0,0.42029204]
[1733827571703,0.07863014,97764.0,97763.0,0.42129204]
[1733827572896,0.08763014,97764.0,97763.0,0.42129204]
[1733827573707,0.03651014,97764.0,97763.0,0.42129204]
[1733827574412,0.03651014,97764.0,97763.0,0.41809481]
[1733827574706,0.03651014,97764.0,97763.0,0.412981]
[1733827574896,0.03651014,97764.0,97763.0,0.42129081]
[1733827575101,0.03651014,97764.0,97763.0,0.06049081]
[1733827575301,0.03651014,97764.0,97763.0,0.42129081]
[1733827575496,0.016,97764.0,97763.0,0.42129081]
[1733827576205,0.016,97764.0,97763.0,0.42129078]
[1733827579405,0.016,97764.0,97763.0,0.412981]
[1733827580308,0.016,97764.0,97763.0,0.42129078]
[1733827580702,0.10768193,97764.0,97763.0,0.41617707]
[1733827581298,0.016,97764.0,97763.0,0.41617706]
[1733827582107,0.016,97764.0,97763.0,0.42129077]
[1733827583307,0.016,97764.0,97763.0,0.412981]
[1733827585112,0.016,97764.0,97763.0,0.5968005]
[1733827586208,0.016,97764.0,97763.0,0.412981]
[1733827586409,0.014,97764.0,97763.0,0.412981]
[1733827589719,0.014,97764.0,97763.0,0.60510914]
[1733827590308,0.014,97764.0,97763.0,0.42128964]
[1733827590705,0.012,97764.0,97763.0,0.42028964]
[1733827590909,0.008,97764.0,97763.0,0.42128964]
[1733827591118,0.008,97764.0,97763.0,0.78208964]
[1733827592523,0.008,97764.0,97763.0,0.82682912]
[1733827592915,0.008,97764.0,97763.0,0.78208964]
[1733827594220,0.008,97764.0,97763.0,0.96590914]
[1733827594413,0.008,97764.0,97763.0,1.01064866]
[1733827594817,0.008,97764.0,97763.0,0.8236336]
[1733827595012,0.008,97764.0,97763.0,0.1020336]
[1733827595214,0.008,97764.0,97763.0,0.82682928]
[1733827595819,0.008,97764.0,97763.0,1.01029828]
[1733827596221,0.008,97764.0,97763.0,0.82682928]
[1733827596717,0.008,97764.0,97763.0,1.0103464]
[1733827596926,0.008,97764.0,97763.0,0.82682928]
[1733827597128,0.008,97764.0,97763.0,1.0103464]
[1733827597318,0.008,97764.0,97763.0,0.82682928]
[1733827598122,0.008,97764.0,97763.0,1.07209513]
[1733827599223,0.008,97764.0,97763.0,0.82682928]
[1733827600025,0.008,97764.0,97763.0,1.07176395]
[1733827600233,0.008,97764.0,97763.0,1.02702443]
[1733827600522,0.008,97764.0,97763.0,1.07176541]
[1733827601920,0.008,97764.0,97763.0,0.82683074]
[1733827602316,0.008,97764.0,97763.0,1.07180897]
[1733827602518,0.008,97764.0,97763.0,1.07181181]
[1733827603019,0.008,97764.0,97763.0,0.82683074]
[1733827603320,0.008,97764.0,97763.0,0.82683093]
[1733827604724,0.008,97764.0,97763.0,0.78208995]
[1733827606522,0.007,97764.0,97763.0,0.78208995]
[1733827607425,0.007,97764.0,97763.0,0.78209013]
[1733827607629,0.002,97764.0,97763.0,0.78109013]
[1733827607922,0.004,97764.0,97763.0,0.78109013]
[1733827608114,0.095901,97764.0,97763.0,0.82583165]
[1733827610129,0.004,97764.0,97763.0,0.82583165]
[1733827610622,0.0959317,97764.0,97763.0,0.82583165]
[1733827611227,0.004,97764.0,97763.0,0.82583165]
[1733827612731,0.004,97764.0,97763.0,0.82583166]
[1733827620132,0.004,97764.0,97763.0,0.10423166]
[1733827620345,0.004,97764.0,97763.0,0.82583166]
[1733827620535,0.004,97764.0,97763.0,0.10423166]
[1733827620739,0.004,97764.0,97763.0,0.82583166]
[1733827627457,0.003,97764.0,97763.0,0.82583166]
[1733827627646,0.001,97764.0,97763.0,0.82583166]
[1733827627846,0.003,97764.0,97763.0,0.82583166]
[1733827628558,0.002,97764.0,97763.0,0.82583166]
[1733827628746,0.002,97764.0,97763.0,0.10423166]
[1733827629152,0.002,97764.0,97763.0,0.82583166]
[1733827629656,0.12469655,97764.0,97763.0,0.82583166]
[1733827631657,0.12469655,97764.0,97763.0,1.13253195]
[1733827633355,0.12469655,97764.0,97763.0,1.13253194]
[1733827633752,0.12469655,97764.0,97763.0,0.82577165]
[1733827633753,0.002,97764.0,97763.0,0.82577165]
[1733827634260,0.002,97764.0,97763.0,1.13253194]
[1733827634455,0.002,97764.0,97763.0,0.82577165]
[1733827634656,0.002,97764.0,97763.0,0.78103013]
[1733827635050,0.05312,97764.0,97763.0,0.7746514]
[1733827635263,0.051122,97761.0,97756.0,0.18408486]
[1733827635567,0.18395027,97760.0,97752.0,0.18408486]
[1733827635861,0.15329971,97754.0,97750.0,0.06587838]
[1733827636057,0.00012,97753.0,97752.0,0.051126]
[1733827636254,0.09195449,97754.0,97750.0,0.45356029]
[1733827636451,0.09195449,97759.0,97753.0,0.051126]
[1733827636653,0.09195449,97760.0,97759.0,0.051123]
[1733827637065,0.09195449,97760.0,97759.0,0.051183]
[1733827637559,0.09195449,97761.0,97760.0,0.051122]
[1733827637953,0.09195449,97761.0,97760.0,0.051182]
[1733827638561,0.09194673,97761.0,97760.0,0.051182]
[1733827638752,0.12262994,97766.0,97760.0,0.052182]
[1733827638961,0.12262994,97766.0,97765.0,0.05112]
[1733827639551,0.0951,97771.0,97769.0,0.051118]
[1733827639760,0.1024,97772.0,97770.0,0.18389355]
[1733827640071,0.15329971,97774.0,97772.0,0.051116]
[1733827640265,0.15329971,97774.0,97773.0,0.051115]
[1733827640561,0.15329971,97774.0,97773.0,0.051175]
[1733827641665,0.15329971,97775.0,97773.0,6e-05]
[1733827641961,0.15329971,97775.0,97773.0,0.29730683]
[1733827641962,0.005,97774.0,97773.0,0.29730683]
[1733827642160,0.005,97774.0,97773.0,0.052115]
[1733827642356,0.008,97774.0,97773.0,0.052115]
[1733827643375,0.008,97774.0,97773.0,0.30692798]
[1733827644168,0.003,97774.0,97773.0,0.30692798]
[1733827644361,0.003,97774.0,97773.0,0.31705414]
[1733827644563,1e-06,97775.0,97773.0,0.26593914]
[1733827644767,9.085e-05,97777.0,97776.0,0.051119]
[1733827644968,9.085e-05,97777.0,97776.0,0.71806013]
[1733827645364,9.085e-05,97777.0,97776.0,0.46176266]
[1733827646064,0.00609085,97777.0,97776.0,0.46276266]
[1733827646368,0.09800959,97777.0,97776.0,0.45765049]
[1733827646561,0.17979404,97777.0,97776.0,0.45765049]
[1733827646757,0.06120885,97777.0,97776.0,0.04573149]
[1733827646962,0.21450856,97777.0,97776.0,0.04573149]
[1733827647361,0.21450856,97777.0,97776.0,0.05404115]
[1733827647362,0.11091763,97777.0,97776.0,0.05404115]
[1733827647572,0.11091763,97777.0,97776.0,0.10516015]
[1733827648263,0.06120885,97777.0,97776.0,0.10516015]
[1733827648866,0.11091806,97777.0,97776.0,0.10516015]
[1733827649378,0.11091806,97777.0,97776.0,0.09685049]
[1733827650568,0.11091806,97777.0,97776.0,0.052119]
[1733827651169,0.11091806,97777.0,97776.0,0.001]
[1733827651363,0.11091806,97777.0,97776.0,0.00419601]
[1733827651565,0.11091806,97777.0,97776.0,0.00930963]
[1733827653371,0.06120885,97777.0,97776.0,0.00930963]
[1733827653873,0.06120885,97777.0,97776.0,0.06042863]
[1733827654479,0.06120885,97777.0,97776.0,0.00930963]
[1733827658373,0.21424094,97777.0,97776.0,0.00930963]
[1733827662587,0.051127,97760.0,97759.0,0.18368408]
[1733827662776,0.051127,97760.0,97759.0,0.00517408]
[1733827662975,0.20416391,97760.0,97759.0,0.00517408]
[1733827663284,0.20413805,97760.0,97759.0,0.00517408]
[1733827663479,0.20425805,97760.0,97759.0,0.00517408]
[1733827663679,0.051137,97742.0,97741.0,0.23476108]
[1733827663869,0.051137,97742.0,97741.0,0.051137]
[1733827664069,0.14306687,97742.0,97741.0,0.051137]
[1733827664273,0.051257,97742.0,97741.0,0.051137]
[1733827665080,0.00012,97742.0,97741.0,0.051137]
[1733827666173,0.00012,97742.0,97741.0,0.055137]
[1733827667686,0.00012,97742.0,97741.0,0.064137]
[1733827667687,0.00112,97742.0,97741.0,0.064137]
[1733827668886,0.00112,97742.0,97741.0,0.10889095]
[1733827669385,0.00112,97742.0,97741.0,0.063137]
[1733827673882,0.00112,97742.0,97741.0,0.06825173]
[1733827674679,0.00112,97742.0,97741.0,0.07144844]
[1733827676486,0.00112,97742.0,97741.0,0.07144843]
[1733827677287,0.00112,97742.0,97741.0,0.25497759]
[1733827677490,0.00112,97742.0,97741.0,0.61577759]
[1733827678682,0.00112,97742.0,97741.0,0.61066286]
[1733827678880,0.00112,97742.0,97741.0,0.60746616]
[1733827679085,0.00112,97742.0,97741.0,0.61066286]
[1733827679985,0.00112,97742.0,97741.0,0.60746616]
[1733827680189,0.00112,97742.0,97741.0,0.61066286]
[1733827680582,0.00112,97742.0,97741.0,0.4271337]
[1733827680984,0.00112,97742.0,97741.0,0.47188804]
[1733827681380,0.052257,97742.0,97741.0,0.47188804]
[1733827681883,0.052257,97742.0,97741.0,0.4271337]
[1733827682090,0.14402158,97742.0,97741.0,0.4271337]
[1733827682286,0.14402158,97742.0,97741.0,0.3759967]
[1733827682487,0.052257,97742.0,97741.0,0.3759967]
[1733827682783,0.17467017,97742.0,97741.0,0.0151967]
[1733827682991,0.413057,97742.0,97741.0,0.0151967]
[1733827683880,0.413057,97742.0,97737.0,9.03e-05]
[1733827683881,0.4232937,97742.0,97737.0,9.03e-05]
[1733827684095,0.20409983,97738.0,97737.0,9.03e-05]
[1733827684292,0.051259,97738.0,97737.0,9.03e-05]
[1733827686390,0.051259,97738.0,97737.0,0.0030903]
[1733827686595,0.052259,97738.0,97737.0,0.0030903]
[1733827688289,0.20517396,97738.0,97737.0,0.0030903]
[1733827688494,0.20515292,97738.0,97737.0,0.0030903]
[1733827688796,0.052259,97738.0,97737.0,0.0030903]
[1733827688992,0.35085282,97738.0,97713.0,0.3608]
[1733827689189,0.051151,97714.0,97713.0,0.3608]
[1733827689385,0.14288835,97714.0,97713.0,0.3608]
[1733827689585,0.14287813,97714.0,97713.0,0.3608]
[1733827689800,0.051151,97714.0,97713.0,0.3608]
[1733827689994,0.051151,97714.0,97713.0,0.36088]
[1733827689995,0.051271,97714.0,97713.0,0.36088]
[1733827690193,0.051271,97714.0,97713.0,0.36888]
[1733827690383,0.14299813,97714.0,97713.0,0.36888]
[1733827690589,0.051271,97714.0,97713.0,0.36888]
[1733827691098,0.052271,97714.0,97713.0,0.36688]
[1733827691295,0.053271,97714.0,97713.0,0.36688]
[1733827692794,0.053271,97714.0,97713.0,0.418032]
[1733827693101,0.09383533,97714.0,97713.0,0.418032]
[1733827693597,0.053271,97714.0,97713.0,0.418032]
[1733827694900,0.00212,97714.0,97713.0,0.418032]
[1733827695986,0.00212,97714.0,97713.0,0.42122982]
[1733827697696,0.00212,97714.0,97713.0,0.06042982]
[1733827697902,0.053271,97714.0,97713.0,0.06042982]
[1733827698197,0.053271,97714.0,97713.0,0.057232]
[1733827698396,0.053271,97714.0,97713.0,0.06042982]
[1733827702607,0.00212,97714.0,97713.0,0.06042982]
[1733827704490,0.09171533,97722.0,97713.0,0.06042982]
[1733827704692,0.09171533,97724.0,97721.0,0.411948]
[1733827705001,0.36132001,97739.0,97721.0,0.411948]
[1733827705002,0.12232709,97735.0,97722.0,0.07329724]
[1733827705195,0.09171533,97740.0,97739.0,0.051138]
[1733827705391,0.09171533,97745.0,97744.0,0.051136]
[1733827705601,0.10221709,97747.0,97744.0,0.36399687]
[1733827705804,0.14284933,97748.0,97747.0,0.051134]
[1733827706101,0.051134,97748.0,97747.0,0.05439087]
[1733827706795,0.07196667,97748.0,97747.0,0.05439087]
[1733827707193,0.16566107,97748.0,97747.0,0.05439087]
[1733827707398,0.07596667,97748.0,97747.0,0.05439087]
[1733827707801,0.004,97748.0,97747.0,0.05439087]
[1733827708113,0.09570081,97748.0,97747.0,0.05439087]
[1733827708405,0.09571877,97748.0,97747.0,0.05439087]
[1733827708596,0.004,97748.0,97747.0,0.05439087]
[1733827708797,0.004,97748.0,97747.0,0.05950563]
[1733827709198,0.09571877,97748.0,97747.0,0.05950563]
[1733827709496,0.004,97748.0,97747.0,0.05950563]
[1733827709701,0.09570841,97748.0,97747.0,0.05950563]
[1733827709901,0.09571024,97748.0,97747.0,0.05950563]
[1733827710096,0.004,97748.0,97747.0,0.05950563]
[1733827710505,0.004,97748.0,97747.0,0.05630876]
[1733827710702,0.004,97748.0,97747.0,0.051194]
[1733827712005,0.004,97748.0,97747.0,0.05950524]
[1733827714108,0.004,97748.0,97747.0,0.05630861]
[1733827714407,0.004,97748.0,97747.0,0.00517461]
[1733827714603,0.055134,97748.0,97747.0,0.00837122]
[1733827715305,0.055134,97748.0,97747.0,0.05439062]
[1733827715500,0.055134,97748.0,97747.0,0.04939062]
[1733827719600,0.14684487,97748.0,97747.0,0.04939062]
[1733827721513,0.15730791,97748.0,97747.0,0.04939062]
[1733827721705,0.051135,97745.0,97744.0,0.3608]
[1733827722407,0.051135,97745.0,97744.0,0.411936]
[1733827722714,0.051255,97745.0,97744.0,0.411936]
[1733827723211,0.053255,97745.0,97744.0,0.411936]
[1733827726519,0.14496587,97745.0,97744.0,0.411936]
[1733827727522,0.053255,97745.0,97744.0,0.41513288]
[1733827728712,0.053255,97745.0,97744.0,0.00319688]
[1733827730719,0.20615058,97745.0,97744.0,0.00319688]
[1733827731213,0.10298312,97745.0,97744.0,0.00319688]
[1733827733610,0.10298312,97745.0,97744.0,0.00319726]
[1733827735306,0.28662742,97745.0,97744.0,0.00319726]
[1733827735510,0.10298312,97745.0,97744.0,0.00319726]
[1733827736112,0.28662742,97745.0,97744.0,0.00319726]
[1733827736308,0.10298312,97745.0,97744.0,0.00319726]
[1733827736614,0.28662742,97745.0,97744.0,0.00319726]
[1733827736816,0.28662742,97745.0,97739.0,6e-05]
[1733827736817,0.051138,97740.0,97739.0,6e-05]
[1733827737006,0.46166612,97740.0,97739.0,0.0032574]
[1733827737413,0.46178612,97740.0,97739.0,0.0032574]
[1733827737912,0.46178913,97740.0,97739.0,0.0032574]
[1733827738418,0.46178913,97740.0,97739.0,0.0042574]
[1733827738619,0.10098913,97740.0,97739.0,0.0042574]
[1733827738915,0.46178913,97740.0,97739.0,0.0042574]
[1733827740012,0.10098913,97740.0,97739.0,0.0042574]
[1733827740219,0.10098913,97740.0,97739.0,0.00425742]
[1733827741119,0.10098859,97740.0,97739.0,0.00425742]
[1733827742319,0.11100974,97740.0,97739.0,0.00425742]
[1733827742513,0.11100974,97740.0,97739.0,0.00106]
[1733827742823,0.11100974,97740.0,97739.0,0.00425739]
[1733827745716,0.11100974,97740.0,97739.0,0.00106]
[1733827745911,0.11100974,97740.0,97739.0,0.0042574]
[1733827748721,0.10098859,97740.0,97739.0,0.0042574]
[1733827752423,0.10098859,97740.0,97739.0,0.0093732]
[1733827758930,0.10098859,97740.0,97739.0,0.00937329]
[1733827760123,0.10098859,97740.0,97739.0,0.00106]
[1733827760327,0.10098859,97740.0,97739.0,0.0093732]
[1733827760724,0.1009886,97740.0,97739.0,0.0093732]
[1733827760936,0.12157071,97740.0,97739.0,0.0093732]
[1733827762923,0.12157071,97740.0,97739.0,0.0605112]
[1733827763127,0.00012,97740.0,97739.0,0.0605112]
[1733827763328,0.051134,97748.0,97747.0,0.051134]
[1733827763534,0.051134,97748.0,97747.0,0.0594472]
[1733827764236,0.051134,97748.0,97747.0,0.0595072]
[1733827764533,0.055134,97748.0,97747.0,0.0595072]
[1733827764730,0.07596365,97748.0,97747.0,0.0595072]
[1733827768328,0.004,97748.0,97747.0,0.0595072]
[1733827768633,0.2147322,97750.0,97749.0,0.051133]
[1733827768833,0.2147322,97750.0,97749.0,0.05944434]
[1733827769039,0.2147322,97750.0,97749.0,0.05950434]
[1733827769426,0.2147322,97750.0,97749.0,0.06137233]
[1733827770231,0.2147322,97750.0,97749.0,0.05950434]
[1733827770436,0.2177322,97750.0,97749.0,0.05950434]
[1733827770840,0.2207322,97750.0,97749.0,0.05950434]
[1733827772137,0.2207322,97750.0,97749.0,0.05950416]
[1733827772534,0.2207322,97750.0,97749.0,0.0613704]
[1733827772736,0.2207322,97750.0,97749.0,0.05950416]
[1733827773333,0.006,97750.0,97749.0,0.05950416]
[1733827773835,0.0977852,97750.0,97749.0,0.06997545]
[1733827774033,0.006,97750.0,97749.0,0.06997545]
[1733827774432,0.006,97750.0,97749.0,0.06166429]
[1733827774640,0.0917852,97755.0,97749.0,0.01053129]
[1733827774839,0.0917852,97758.0,97754.0,0.3608]
[1733827775037,0.0917852,97762.0,97760.0,0.051127]
[1733827775238,0.0917852,97763.0,97762.0,0.051126]
[1733827775544,0.0917852,97765.0,97764.0,0.051125]
[1733827775843,0.1735194,97770.0,97769.0,0.051123]
[1733827776231,0.1735194,97770.0,97769.0,0.051183]
[1733827776432,0.1735194,97770.0,97769.0,0.059493]
[1733827776633,0.051122,97770.0,97769.0,0.059493]
[1733827776837,0.07174934,97770.0,97769.0,0.059493]
[1733827777235,0.07774934,97770.0,97769.0,0.060493]
[1733827777642,0.08674934,97770.0,97769.0,0.061493]
[1733827782048,0.066122,97770.0,97769.0,0.061493]
[1733827782638,0.066122,97770.0,97769.0,0.06149305]
[1733827786640,0.08623591,97770.0,97769.0,0.06149305]
[1733827787042,0.08623591,97770.0,97769.0,0.01037005]
[1733827787945,0.20852797,97770.0,97769.0,0.01037005]
[1733827788150,0.18841406,97770.0,97769.0,0.01037005]
[1733827788640,0.066122,97770.0,97769.0,0.01037005]
[1733827789042,0.066122,97770.0,97769.0,0.01037009]
[1733827791743,0.08636888,97770.0,97769.0,0.01037009]
[1733827791940,0.08636888,97770.0,97769.0,0.06149309]
[1733827792148,0.08636888,97770.0,97769.0,0.053183]
[1733827792349,0.08636888,97770.0,97769.0,0.06149307]
[1733827792550,0.08636888,97770.0,97769.0,0.06660696]
[1733827792748,0.08636888,97770.0,97769.0,0.06149307]
[1733827793446,0.015,97770.0,97769.0,0.06149307]
[1733827795347,0.015,97770.0,97769.0,0.053183]
[1733827795547,0.015,97770.0,97769.0,0.06149234]
[1733827797657,0.015,97770.0,97769.0,0.2450215]
[1733827797949,0.015,97770.0,97769.0,0.06149234]
[1733827798659,0.015,97770.0,97769.0,0.2450215]
[1733827799351,0.015,97770.0,97769.0,0.10633565]
[1733827799652,9.085e-05,97777.0,97776.0,0.051119]
[1733827799953,9.085e-05,97777.0,97776.0,0.46502589]
[1733827800152,9.085e-05,97777.0,97776.0,0.42028834]
[1733827800356,9.085e-05,97777.0,97776.0,0.66520781]
[1733827800858,9.085e-05,97777.0,97776.0,0.66620781]
[1733827801159,9.085e-05,97777.0,97776.0,0.42128717]
[1733827801160,0.00909085,97777.0,97776.0,0.42128717]
[1733827801348,0.01609085,97777.0,97776.0,0.42228717]
[1733827801549,0.09186192,97785.0,97776.0,0.75871402]
[1733827801747,0.09186192,97788.0,97784.0,0.3608]
[1733827801952,0.09186192,97789.0,97788.0,0.051113]
[1733827802254,0.12241322,97795.0,97788.0,0.00836761]
[1733827802447,0.0917753,97790.0,97789.0,0.05941961]
[1733827803257,0.0917753,97792.0,97791.0,0.051111]
[1733827803455,0.0917753,97792.0,97791.0,0.05941861]
[1733827803651,0.12241322,97796.0,97795.0,0.051109]
[1733827803855,0.02048335,97801.0,97795.0,0.051109]
[1733827803856,0.12241322,97797.0,97796.0,0.051108]
[1733827804060,0.12234331,97799.0,97797.0,0.051108]
[1733827804354,0.09179781,97804.0,97802.0,0.051105]
[1733827804555,0.09179781,97804.0,97803.0,0.00830761]
[1733827804753,0.09180104,97804.0,97803.0,0.05947261]
[1733827804955,8.764e-05,97804.0,97803.0,0.05947261]
[1733827805959,0.00408764,97804.0,97803.0,0.06047261]
[1733827806963,0.00408764,97804.0,97803.0,0.06147261]
[1733827807349,0.00108764,97804.0,97803.0,0.06047261]
[1733827807654,0.00108764,97804.0,97803.0,0.05947261]
[1733827812258,0.00108764,97804.0,97803.0,0.00836761]
[1733827812259,0.05219164,97804.0,97803.0,0.00836761]
[1733827812761,0.06259416,97804.0,97803.0,0.00836761]
[1733827812947,0.051108,97796.0,97795.0,6e-05]
[1733827813450,0.051228,97796.0,97795.0,6e-05]
[1733827813957,0.051114,97785.0,97784.0,0.3608]
[1733827814259,0.051119,97778.0,97777.0,0.051118]
[1733827814660,0.051119,97775.0,97774.0,0.3608]
[1733827814955,0.051239,97775.0,97774.0,0.3608]
[1733827815355,0.00012,97775.0,97774.0,0.41192]
[1733827817254,0.00112,97775.0,97774.0,0.41192]
[1733827817756,0.00212,97775.0,97774.0,0.41192]
[1733827818258,0.00112,97775.0,97774.0,0.41192]
[1733827818458,0.00012,97775.0,97774.0,0.41192]
[1733827818657,0.00012,97775.0,97774.0,0.5965552]
[1733827819764,0.00012,97775.0,97774.0,0.41292]
[1733827820456,0.00012,97775.0,97774.0,0.41492]
[1733827821056,0.00012,97775.0,97774.0,0.41792]
[1733827821660,0.00012,97775.0,97774.0,0.41892]
[1733827822155,0.00012,97775.0,97774.0,0.41392]
[1733827822359,0.00012,97775.0,97774.0,0.41692]
[1733827823767,0.00012,97775.0,97774.0,0.42203289]
[1733827823961,0.00012,97775.0,97774.0,0.42103289]
[1733827824460,0.00012,97775.0,97774.0,0.41803289]
[1733827824662,0.00012,97775.0,97774.0,0.42003289]
[1733827824863,0.00012,97775.0,97774.0,0.42103289]
[1733827825061,0.00012,97775.0,97774.0,0.42422849]
[1733827825262,0.00012,97775.0,97774.0,0.42322849]
[1733827825560,0.00012,97775.0,97774.0,0.60640809]
[1733827825768,0.00012,97775.0,97774.0,0.60460089]
[1733827825957,0.00012,97775.0,97774.0,0.60659953]
[1733827826259,0.00012,97775.0,97774.0,0.41492]
[1733827826464,0.00012,97775.0,97774.0,0.42222846]
[1733827826655,0.00012,97775.0,97774.0,0.42322846]
[1733827828163,0.00012,97775.0,97774.0,0.42222846]
[1733827828359,0.00012,97775.0,97774.0,0.42322846]
[1733827828862,0.00012,97775.0,97774.0,0.60667224]
[1733827829164,0.00012,97775.0,97774.0,0.42322846]
[1733827830266,0.00012,97775.0,97774.0,0.42322841]
[1733827831063,0.00012,97775.0,97774.0,0.49282841]
[1733827835461,0.00012,97775.0,97774.0,0.48452]
[1733827835658,0.00012,97775.0,97774.0,0.49282781]
[1733827835965,0.0917405,97792.0,97791.0,0.051111]
[1733827836265,0.0917405,97792.0,97791.0,0.051171]
[1733827836464,0.0917405,97793.0,97792.0,0.051111]
[1733827836663,0.0917405,97795.0,97794.0,0.05111]
[1733827836858,0.0917405,97795.0,97791.0,0.00836769]
[1733827836859,0.0917405,97801.0,97800.0,0.051106]
[1733827837061,0.0917405,97801.0,97800.0,0.411906]
[1733827837262,0.0917405,97802.0,97801.0,0.051106]
[1733827837457,0.0917405,97802.0,97801.0,0.0594134]
[1733827837663,0.0917405,97802.0,97801.0,0.0594734]
[1733827837874,8.764e-05,97804.0,97803.0,0.051105]
[1733827838059,8.764e-05,97804.0,97803.0,0.05621725]
[1733827838371,8.764e-05,97804.0,97803.0,0.0594724]
[1733827838963,0.05119164,97804.0,97803.0,0.0594724]
[1733827839269,0.05119164,97804.0,97803.0,0.05436015]
[1733827839270,8.764e-05,97804.0,97803.0,0.05436015]
[1733827839663,8.764e-05,97804.0,97803.0,0.051165]
[1733827839869,0.00408764,97804.0,97803.0,0.05435988]
[1733827841071,0.00708764,97804.0,97803.0,0.05535988]
[1733827842369,0.00708764,97804.0,97803.0,0.41615988]
[1733827842573,0.00708764,97804.0,97803.0,0.66080121]
[1733827842872,0.00708764,97804.0,97803.0,0.41615988]
[1733827843273,0.00708764,97804.0,97803.0,0.42127105]
[1733827844270,0.00708764,97804.0,97803.0,0.67617379]
[1733827844568,0.00708764,97804.0,97803.0,0.43167183]
[1733827848770,0.00708764,97804.0,97803.0,0.61496391]
[1733827848972,0.00708764,97804.0,97803.0,0.61496357]
[1733827849178,0.00708764,97804.0,97803.0,0.43167149]
[1733827850081,0.00708764,97804.0,97803.0,0.79247149]
[1733827851179,0.00708764,97804.0,97803.0,0.78736028]
[1733827851379,6.4e-07,97804.0,97803.0,0.78736028]
[1733827855282,6.4e-07,97804.0,97803.0,0.78416578]
[1733827855583,6.4e-07,97804.0,97803.0,0.78735985]
[1733827855785,0.09176036,97828.0,97803.0,0.73525485]
[1733827855983,0.09176036,97828.0,97827.0,0.411892]
[1733827856176,0.09176036,97828.0,97827.0,0.41508607]
[1733827856782,0.09176036,97828.0,97827.0,0.41514607]
[1733827858374,0.09176036,97829.0,97828.0,0.051092]
[1733827858678,0.09176036,97829.0,97828.0,0.05428607]
[1733827858880,0.09176036,97829.0,97828.0,0.05434607]
[1733827859577,0.09176036,97829.0,97828.0,0.05534607]
[1733827860185,0.12234331,97833.0,97828.0,0.05534607]
[1733827860483,0.12234331,97833.0,97832.0,0.05109]
[1733827860684,0.12234331,97833.0,97832.0,0.05434407]
[1733827861077,0.051089,97833.0,97832.0,0.0543441]
[1733827861983,0.051089,97833.0,97832.0,0.0553441]
[1733827862393,0.051089,97833.0,97832.0,0.0563441]
[1733827864493,0.051089,97833.0,97832.0,0.05634422]
[1733827865179,0.20408575,97833.0,97832.0,0.05634422]
[1733827865782,0.051089,97833.0,97832.0,0.05634422]
[1733827865980,0.20397826,97833.0,97832.0,0.05634422]
[1733827866188,0.10077042,97833.0,97832.0,0.05634422]
[1733827867386,0.10077042,97833.0,97832.0,0.00525422]
[1733827867783,0.28436652,97833.0,97832.0,0.00525422]
[1733827867980,0.10077042,97833.0,97832.0,0.00525422]
[1733827868182,0.10077042,97833.0,97815.0,0.051098]
[1733827868383,0.051098,97816.0,97815.0,0.051098]
[1733827868583,0.051098,97816.0,97815.0,0.05429259]
[1733827868794,0.15298952,97820.0,97819.0,0.051096]
[1733827868987,0.051095,97821.0,97820.0,0.051096]
[1733827869183,0.20408452,97821.0,97820.0,0.05429059]
[1733827870894,0.20408452,97821.0,97820.0,0.00319459]
[1733827870895,0.10078235,97821.0,97820.0,0.00319459]
[1733827871082,0.10178235,97821.0,97820.0,0.00319459]
[1733827871785,0.10178235,97821.0,97804.0,0.01016815]
[1733827871786,0.051098,97816.0,97801.0,0.23436196]
[1733827871982,0.20418101,97809.0,97806.0,0.051103]
[1733827872386,0.051102,97809.0,97806.0,0.051103]
[1733827872589,0.20418452,97809.0,97806.0,0.051103]
[1733827873185,0.20618452,97809.0,97801.0,6e-05]
[1733827873589,0.15508252,97809.0,97801.0,6e-05]
[1733827873787,0.17354605,97802.0,97801.0,6e-05]
[1733827874104,0.051225,97802.0,97801.0,6e-05]
[1733827875486,0.25488217,97802.0,97801.0,6e-05]
[1733827875681,0.15162301,97802.0,97801.0,6e-05]
[1733827875881,0.10192331,97802.0,97801.0,6e-05]
[1733827876086,0.10392331,97802.0,97801.0,6e-05]
[1733827876292,0.25687595,97802.0,97801.0,6e-05]
[1733827876490,0.10392331,97802.0,97801.0,6e-05]
[1733827882594,0.22608069,97802.0,97801.0,6e-05]
[1733827883591,0.22608069,97802.0,97801.0,0.00325527]
[1733827885201,0.10192331,97802.0,97801.0,6e-05]
[1733827885502,0.10192331,97802.0,97801.0,0.00325525]
[1733827885503,0.22608069,97802.0,97801.0,0.00325525]
[1733827885689,0.054225,97802.0,97801.0,0.00325525]
[1733827885895,0.17637268,97802.0,97801.0,6e-05]
[1733827886196,0.17537268,97802.0,97801.0,6e-05]
[1733827886393,0.17637268,97802.0,97801.0,6e-05]
[1733827886895,0.054225,97802.0,97801.0,6e-05]
[1733827887095,0.051115,97784.0,97783.0,0.3608]
[1733827887299,0.051115,97784.0,97783.0,0.36399543]
[1733827887490,0.051235,97784.0,97783.0,0.36399543]
[1733827887892,0.051235,97784.0,97783.0,0.00319543]
[1733827888090,0.051119,97775.0,97774.0,0.3608]
[1733827888300,0.051119,97775.0,97774.0,0.36399573]
[1733827888501,0.051239,97775.0,97774.0,0.36399573]
[1733827889109,0.051239,97775.0,97774.0,0.00319573]
[1733827890091,0.051239,97775.0,97774.0,0.05631573]
[1733827890500,0.051239,97775.0,97774.0,0.05731573]
[1733827892601,0.09162446,97783.0,97774.0,0.05731573]
[1733827892903,0.051115,97785.0,97784.0,0.051115]
[1733827893104,0.051112,97789.0,97788.0,0.051112]
[1733827893299,0.14273646,97789.0,97788.0,0.05430749]
[1733827893499,0.051112,97789.0,97788.0,0.05436749]
[1733827894794,0.053112,97789.0,97788.0,0.05436749]
[1733827895708,0.057112,97789.0,97788.0,0.05436749]
[1733827897496,0.057112,97789.0,97788.0,0.051172]
[1733827897894,0.057112,97789.0,97788.0,0.05436749]
[1733827898599,0.17926961,97789.0,97788.0,0.05436749]